Cogmind - Beta 15 @@@ ROGUE MODE // 2025.08.12 @ 13:41:12 Player: Nopana Result: Destroyed by S-10 Pest with Light Assault Rifle Performance ------------- Evolutions (0) 0 Regions Visited (1) 200 Robots Destroyed (13) 65 Value Destroyed (233) 233 Prototype IDs (0) 0 Alien Tech Used (0) 0 Bonus (0) 0 TOTAL SCORE: 498 Bonus ------- None Cogmind --------- Core Integrity 0/250 Matter 226/300 Energy 72/100 System Corruption 6% Temperature Cool (0) Movement Walking (190) Ox1 Location -10/Materials Parts ------- > --- POWER (1) -------- (None) > --- PROPULSION (2) --- Aluminum Leg > --- UTILITY (2) ------ Medium Storage Unit > --- WEAPON (2) ------- Medium Laser Grenade Launcher > --- INVENTORY (10) --- Wheel Flight Unit EM Pulse Gun Small Laser Mining Laser Peak State ------------ > --- POWER ------------ Light Ion Engine > --- PROPULSION ------- Aluminum Leg Aluminum Leg > --- UTILITY ---------- Large Matter Pod Tractor Beam > --- WEAPON ----------- EM Pulse Gun Grenade Launcher > --- INVENTORY -------- Flight Unit Medium Laser Mining Laser [Rating: 7] Favorites ----------- Power Light Ion Engine Engine Light Ion Engine Propulsion Aluminum Leg Leg Aluminum Leg Wheel Wheel Flight Unit Flight Unit Utility Medium Storage Unit Device Tractor Beam Storage Medium Storage Unit Weapon Grenade Launcher Energy Gun Medium Laser Ballistic Gun Assault Rifle Launcher Grenade Launcher Special Weapon Mining Laser Build | -11 -10 ------- Run | Yrd Mat Slots Evolved . | . . Power . | . . Propulsion . | . . Utility . | . . Weapon . | . . Parts Attached 16 | 7 9 Power 1 | 1 . Engine 1 | 1 . Core . | . . Reactor . | . . Propulsion 5 | 4 1 Treads . | . . Leg 2 | 2 . Wheel 2 | 2 . Hover . | . . Flight 1 | . 1 Utility 4 | . 4 Device 1 | . 1 Storage 3 | . 3 Processor . | . . Hackware . | . . Protection . | . . Artifact . | . . Weapon 6 | 2 4 Energy Gun 3 | 1 2 Energy Cannon . | . . Ballistic Gun 1 | 1 . Ballistic Cannon . | . . Launcher 1 | . 1 Special Weapon 1 | . 1 Impact Weapon . | . . Slashing Weapon . | . . Piercing Weapon . | . . Special Melee Weapon . | . . Unidentified Prototypes . | . . Parts Lost 4 | . 4 Power 1 | . 1 Propulsion 1 | . 1 Utility 1 | . 1 Weapon 1 | . 1 Highest Loss Streak 2 | . 2 To Critical Strikes . | . . Average Backups 2 | 2 2 Power . | . . Propulsion . | 2 . Utility . | . . Weapon 1 | . 2 Tool/Special . | . . Unused Backups 5 | 2 3 Power . | . . Propulsion 3 | 1 2 Utility 1 | . 1 Weapon 1 | 1 . Tool/Special . | . . Average Slot Usage (%) 69 | . 69 Engine 6 | . 6 Leg 19 | . 19 Storage 12 | . 12 Energy Gun 14 | . 14 Ballistic Gun 2 | . 2 Launcher 9 | . 9 Special Weapon 1 | . 1 Peak Build Rating 7 | 5 7 Average Rating 4 | 3 4 On Entrance 2 | . 5 Naked Turns . | . . Heaviest Build 16 | 7 16 Greatest Support 20 | 20 20 Greatest Overweight (x) 3 | . 3 Average Overweight (x) . | . . Largest Inventory Capacity 10 | 5 10 Average Capacity 7 | 5 7 Most Carried 5 | 5 5 Average Carried 2 | 2 2 Final Capacity 10 | 5 10 Final Carried 5 | 1 5 Class Distribution -------------------- 100% | Mutant Dominant Class ---------------- Mutant | -10/Materials Resources | -11 -10 ----------- Run | Yrd Mat Matter Collected 463 | 330 133 Remotely . | . . Salvage Created 249 | 77 172 Parts 30 | 6 24 Haulers Intercepted . | . . Recyclers Shooed . | . . Parts Field Recycled . | . . Retrieved Matter . | . . Parts Self-Destructed . | . . Prevented . | . . Kills | -11 -10 ------- Run | Yrd Mat Combat Hostiles Destroyed 7 | 1 6 Guns 2 | 1 1 AOE 5 | . 5 Classes Destroyed 5 | 3 2 Worker 2 | 1 1 Builder 3 | . 3 Tunneler 1 | 1 . Swarmer 3 | . 3 Grunt 4 | 1 3 Best Kill Streak 3 | 2 3 Combat Bots Only 3 | 1 3 Max Kills in Single Turn 2 | 1 2 Gunslinging . | . . Exploded 2 | . 2 Melee . | . . Uniques/NPCs Destroyed . | . . Combat | -11 -10 -------- Run | Yrd Mat Hostile Shots Fired 35 | 6 29 Missed 7 | 2 5 Hits 28 | 4 24 Projectile 28 | 4 24 Damage Taken 825 | 67 758 Core 255 | 10 245 Absorbed by Shields . | . . Core Remaining (%) 96 | 96 . Volleys Fired 33 | 10 23 Largest 2 | 2 2 Hottest 100 | 60 100 Shots Fired 60 | 20 40 Gun 50 | 20 30 Cannon . | . . Launcher 7 | . 7 Special 3 | . 3 Kinetic 19 | 10 9 Thermal 11 | . 11 Explosive 7 | . 7 Electromagnetic 23 | 10 13 Robot Hit Streak 7 | 7 7 Robot Miss Streak 6 | 2 6 Penetration Max . | . . Secondary Targets . | . . Shots Hit Robots 27 | 12 15 Core Hits 20 | 3 17 Critical Kills . | . . Critical Parts Destroyed . | . . Critical Strikes . | . . Melee Attacks . | . . Impact . | . . Slashing . | . . Piercing . | . . Sneak Attacks . | . . Combat Hostiles . | . . Follow-up Attacks . | . . Damage Inflicted 720 | 187 533 Guns 327 | 158 169 Cannons . | . . Explosions 392 | 29 363 Melee . | . . Ramming 1 | . 1 Kinetic 141 | 89 52 Thermal 54 | 29 25 Explosive 308 | . 308 Electromagnetic 216 | 69 147 Impact . | . . Slashing . | . . Piercing . | . . Highest Corruption 6 | . 6 Average Corruption 6 | . 6 Corruption Purged . | . . Corruption Blocked . | . . Effects 13 | . 13 Message Errors 3 | . 3 Matter Fused 2 | . 2 Heat Flow Errors 1 | . 1 Energy Discharges 2 | . 2 Data Loss (minor) 1 | . 1 Data Loss (major) 3 | . 3 Alerts 1 | . 1 Overload Shots . | . . Overflow Damage 10 | . 10 Projectiles . | . . Explosions 10 | . 10 Melee . | . . Knockbacks . | . . Impact . | . . Kinetic . | . . Secondary . | . . Self-Inflicted Damage 104 | 23 81 Shots 4 | 1 3 Rammed . | . . Targets Rammed 1 | . 1 Kicked 1 | . 1 Crushed . | . . Highest Temperature 172 | 18 172 Average Temperature 28 | 15 32 Received Heat Transfer 93 | 24 69 Siege Activations . | . . Martial Activations . | . . Shielding Activations . | . . Robots Disrupted . | . . Combat Hostiles . | . . Robots Corrupted . | . . Combat Hostiles . | . . Parts Fried . | . . Impact Corruptions . | . . Robots Melted . | . . Combat Hostiles . | . . Parts Melted . | . . Heat Transferred 124 | 50 74 Parts Sabotaged . | . . Parts Stolen . | . . Parts Stripped . | . . Power Chain Reactions 1 | 1 . Alert | -11 -10 ------- Run | Yrd Mat Maximum Alert Level . | . . Low Security (%) 100 | 100 100 Level 1 . | . . Level 2 . | . . Level 3 . | . . Level 4 . | . . Level 5 . | . . High Security . | . . Max Security . | . . Peak Influence 77 | 25 77 Initial 3 | . 3 Average 23 | 2 31 Influence Increases 293 | 30 263 Destroy 0b10 Robot/C 140 | 20 120 Destroy 0b10 Robot/NC 30 | 10 20 Destroy Leader 30 | . 30 Successful Hack 9 | . 9 Disable Machine 45 | . 45 Destroy Structure 39 | . 39 Influence Decreases 271 | 25 246 Entered New Map 2 | . 2 Time Decay 246 | 25 221 Lost Part 23 | . 23 Squads Dispatched 2 | . 2 Investigation 2 | . 2 Extermination . | . . Reinforcement . | . . Assault . | . . Garrison . | . . Intercept . | . . Searches Triggered . | . . Construction Impeded . | . . Haulers Reinforced . | . . Active Scanning Responses . | . . Cargo Convoy Interrupts . | . . Stealth | -11 -10 --------- Run | Yrd Mat Distress Signals 1 | . 1 Communications Jammed . | . . Distress Signals . | . . Times Spotted 14 | 1 13 Peak Tracking Total 5 | 1 5 Tactical Retreats . | . . Traps | -11 -10 ------- Run | Yrd Mat Traps Triggered 2 | . 2 Indirectly . | . . Trap Hack Attempts . | . . Triggered . | . . Disarmed . | . . Reprogrammed . | . . Reused . | . . Traps Extracted . | . . Installed . | . . Triggered . | . . Machines | -11 -10 ---------- Run | Yrd Mat Machines Disabled 3 | . 3 Max in Single Turn 1 | . 1 Machines Repaired . | . . Machines Dismantled . | . . Machines Sabotaged . | . . Overloaded Fab Kills . | . . Hacking | -11 -10 --------- Run | Yrd Mat Machines Accessed 3 | . 3 Terminals 3 | . 3 Fabricators . | . . Repair Stations . | . . Recycling Units . | . . Scanalyzers . | . . Garrison Access . | . . Total Hacks 7 | . 7 Successful 4 | . 4 Failed 3 | . 3 Catastrophic 1 | . 1 Database Lockouts . | . . Manual . | . . Terminals 7 | . 7 Fabricators . | . . Repair Stations . | . . Recycling Units . | . . Scanalyzers . | . . Garrison Access . | . . Terminal Hacks 4 | . 4 Record 1 | . 1 Scanalyzer Index 1 | . 1 Alert Level 1 | . 1 Reinforcement Status 1 | . 1 Fabricator Hacks . | . . Repair Station Hacks . | . . Recycling Unit Hacks . | . . Scanalyzer . | . . Garrison Access Hacks . | . . Unauthorized Hacks . | . . Terminals . | . . Fabricators . | . . Repair Stations . | . . Recycling Units . | . . Scanalyzers . | . . Garrison Access . | . . Data Cores Recovered . | . . Used . | . . Hacking Detections 2 | . 2 Full Trace Events . | . . Feedback Events . | . . Feedback Blocked . | . . Robot Schematics Acquired . | . . Robots Built . | . . Authchips . | . . Time . | . . Total Robot Build Rating . | . . Part Schematics Acquired . | . . Parts Built . | . . Authchips . | . . Time . | . . Total Part Build Rating . | . . Parts Repaired . | . . Time . | . . Parts Recycled . | . . Recycled Matter . | . . Retrieved Matter . | . . Retrieved Components . | . . Parts Scanalyzed . | . . Part Schematics Acquired . | . . Parts Damaged . | . . Bothacking | -11 -10 ------------ Run | Yrd Mat Used RIF Installer . | . . Robots Hacked . | . . Non-combat . | . . Combat . | . . Robot Hacks Applied . | . . Relay Couplers Released . | . . Fabnet Peak Effective % . | . . Robots Rewired . | . . Allies Hacked . | . . Hacks Repelled . | . . Allies | -11 -10 -------- Run | Yrd Mat Total Allies . | . . Largest Group . | . . Highest-Rated Group . | . . Highest-Rated Ally . | . . Total Orders . | . . Ally Attacks . | . . Total Damage . | . . Kills . | . . Allies Corrupted . | . . Allies Melted . | . . Intel | -11 -10 ------- Run | Yrd Mat Active Infowar (turns) . | . . Robot Analysis Total . | . . Derelict Logs Recovered . | . . Drone Launches . | . . Drone Recoveries . | . . Exploration | -11 -10 ------------- Run | Yrd Mat Turns Passed 830 | 223 607 Spaces Moved 466 | 147 319 Core 28 | 28 . Treads . | . . Legs 429 | 119 310 Wheels . | . . Hover . | . . Flight 9 | . 9 Fastest Speed 50 | 50 120 Average Speed 141 | 106 157 Slowest Speed 290 | 120 290 Overloaded Moves . | . . Propulsion Burnouts . | . . Robots Hopped . | . . Potential Cave-ins . | . . Cave-ins Triggered 1 | . 1 Exploration Rate (%) 24 | 7 41 Regions Visited 1 Branch Regions . Pre-discovered Areas . | . . Known Exits Taken . | . . Unknown Exits Taken 1 | 1 . Scrap Searched . | . . Spaces Dug 3 | . 3 Terrain Destroyed 50 | 3 47 Melee . | . . Projectile 3 | . 3 AOE 47 | 3 44 Terrain Rammed . | . . Walls Destroyed . | . . Machines Disabled . | . . Actions | -11 -10 --------- Run | Yrd Mat Total 572 | 194 378 Wait 11 | 9 2 Move 465 | 146 319 Hop . | . . Pick Up 25 | 12 13 Fast Attach . | . . Attach 15 | 6 9 Detach 3 | 1 2 Swap 7 | 4 3 Drop 12 | 6 6 Fire 33 | 10 23 Melee . | . . Ram . | . . Kick 1 | . 1 Crush . | . . Escape Stasis . | . . Rewire . | . . Trap . | . . Miscellaneous . | . . Route ------- -11/Scrapyard -10/Materials History --------- Turn | Location | Event 2 | -11/Scrapyard | Met Revision 17 177 | -11/Scrapyard | Discovered new exit (range 8) 224 | -11/Scrapyard | Entered Materials 307 | -10/Materials | Build established: Mutant 461 | -10/Materials | Crushed by falling debris 461 | -10/Materials | Core integrity fell below 50% 461 | -10/Materials | Core integrity fell below 20% 831 | -10/Materials | Destroyed by S-10 Pest with Light Assault Rifle Last Messages --------------- U-05 Engineer lays Concrete. The unstable cave ceiling collapses. U-05 Engineer lays Concrete. U-05 Engineer builds a Wall. U-05 Engineer lays Concrete. U-05 Engineer builds a Wall. U-05 Engineer lays Concrete. U-05 Engineer builds a Wall. U-05 Engineer lays Concrete. U-05 Engineer builds a Wall. U-05 Engineer lays Concrete. System corrupted: Matter fused (-6). Acquired Flight Unit. System corrupted: Energy discharge (-28). Connecting with Terminal... Acquired Wheel. U-05 Engineer builds a Door. System corrupted: IFF burst signal emitted. Acquired Sml. Laser. 4=FF&Z/3X>US9VTJSKE9 Map ----- +----------------------------------------------------+ | ????????????????????????????????????????????? | | ????????????????????????????????????????????? | | ????????????????????????????????????????????? | | ???????????????????????????????????########## | | ???????????????????????????????????# # | | ???????????????????????????????????# # | | ???????????????????????????????????# # | | ???????????????????????????????????# # | | ################## ????# ????????# # | | ?? #???????# # | | ?? #???????# ! # | | ?? #???????# # | | # #####?????#s #???????# # | | # #+#?????????# #???????#####+###? | | # * "Y" #???????????# ########### #?? | | |%! """ #???????????# #?? | | #???????????# T #?? | | #???????????#s ###### #### #?? | | # #### +???????????# s ######+##### ##?? | | # #??# #???????????# ### # #??? | | #% #??# #???????????# ### + #??? | | / #??# #?????????### # #! # #??? | | # #??# #?????????# # ### # #??? | | # #??# #?########### + # #??? | | # #??# #?# # ### ! # #??? | | # #??# #?# # @ ### # #??? | | # #??# #?# !# ### # #??? | | # #??# #?# # #?# # #??? | | # #??# #?# ! !! + ###############??? | | ########## # =[[#????? | | + ! # ########### #????? | | ########## + #????###### #????? | | ##+#####?????########### ####??????# ###### | | #???????????????# #??????# # # | | "" """ #???????????????#! =!!#??????# # # | | "" """ #???????????????##!!!!######### # [ # | | "" """ #????????????????####### # # # | | #??????????????????????# """ # # !!!# | | #??????????????????????# """ + + !!!# | | #??????????????????????# """ ###^!!!# | | #??????????????????????# #?# # | | ########??????????????????????# #?#! # | | ??????????????????????????????########?###### | | | | | | | | | | | | | | | +----------------------------------------------------+ Best States ------------- Heat Dissipation 25 Energy Generation 10 Energy Capacity 125 Matter Stores 328 Matter Capacity 450 Sight Range 16 Terrain Scan Density 10 Evasion (%) 55 Item Schematics ----------------- None Robot Schematics ------------------ None Fabricated ------------ Nothing Repaired ---------- Nothing Alien Tech Used ----------------- None Achievements -------------- Unlikely Earthworm Challenges ------------ None Game ------ Seed CouplerDirtyWheel Manual? 0 Play Time 00:20:01 Cumulative 7.3 hours Start 2025.08.12 @ 13:20:46 End 2025.08.12 @ 13:41:12 Sessions 1 Manual Loads 0 Difficulty Rogue Special Mode None Game No. 13 Rogue 13 Adventurer 0 Explorer 0 Win Type - Total 0 Types 0/0/0/0/0/0/0/0/0/0 Lore% 9 Gallery% 9 Achievement% 10 Wizard Run 0 Options --------- Layout 1 ASCII 0 Keyboard 0 Movement Mouse Keybinds 0 Fullscreen 1 Font 16/SmallcapsGlow Map View 27x19 Zoom Use 85% Tactical HUD 0 Map Filters NONE Filters NONE Steam 1 RUN: adecf218-dfb0-4a52-b510-90b95bae04e6